fUSD/lending_fUSD_20240415
["ID","MTS","AMOUNT","RATE_DAILY","PERIOD"]
[322661720,1713195044252,-186.68,0.00016667,2]
[322661722,1713195044262,-9423.4883,0.00016689,2]
[322661724,1713195044271,-1266.98,0.0001679,2]
[322661726,1713195044281,-1967.08084874,0.000168,2]
[322661728,1713195044290,-800.58078681,0.00016862,2]
[322661730,1713195044299,-167.1,0.0001716,2]
[322661731,1713195044309,-671.4635,0.00017168,2]
[322661733,1713195044319,-2351.17471367,0.00017486,2]
[322661735,1713195044328,-702.15008772,0.00017486,2]
[322661737,1713195044338,-443.68012863,0.00017486,2]
[322661739,1713195044349,-208.54577135,0.00017486,2]
[322661741,1713195044360,-616.41599687,0.00017486,2]
[322661743,1713195044369,-550.54513889,0.00017486,2]
[322661745,1713195044378,-8889.04586861,0.00017488,2]
[322661747,1713195044387,-1077.86498806,0.00017488,2]
[322661749,1713195044396,-186.68,0.00017535,2]
[322661751,1713195044405,-1464.28,0.00017562,2]
[322661753,1713195044417,-210.0,0.000176,2]
[322661755,1713195044429,-166.94,0.00017605,2]
[322661757,1713195044443,-431.81568618,0.00017728,2]
[322661759,1713195044453,-426.20288164,0.00017738,2]
[322661761,1713195044462,-220.23863973,0.00017739,2]
[322661763,1713195044471,-234.86,0.00017739,3]
[322661765,1713195044480,-507.04,0.00017743,2]
[322661767,1713195044490,-1577.15329938,0.00017748,2]
[322661770,1713195044502,-348369.17499013,0.00017749,2]
[322661790,1713195044689,-381.67972208,0.00017749,2]
[322661794,1713195044721,-445.25999975,0.00017749,2]
[322662065,1713195047427,-342.2671144,0.00016691,2]
[322662069,1713195047455,-517.4328856,0.00016691,2]
[322662071,1713195047464,-84.69426441,0.00017747,2]
[322662073,1713195047476,-2034.23656499,0.00017747,2]
[322662075,1713195047487,-1590.42304475,0.00017747,2]
[322662077,1713195047497,-196427.72244108,0.00017749,2]
[322662079,1713195047506,-304.98221471,0.0001775,2]
[322662081,1713195047521,-2995.60440013,0.0001775,2]
[322662083,1713195047530,-272.53999547,0.0001775,2]
[322662085,1713195047540,-408.44828546,0.00017751,2]
[322662087,1713195047550,-300.0,0.00017753,2]
[322662089,1713195047560,-329.75,0.00017753,2]
[322662091,1713195047569,-174.51750874,0.00017789,2]
[322662093,1713195047578,-164.26330268,0.00017791,2]
[322662095,1713195047588,-312.83485941,0.00017791,2]
[322662097,1713195047602,-531.55753269,0.00017791,2]
[322662099,1713195047611,-167.0376467,0.00017792,2]
[322662101,1713195047620,-296.0,0.00017794,2]
[322662103,1713195047629,-363.64,0.00017828,2]
[322662105,1713195047638,-5078.84256025,0.0001788,2]
[322662107,1713195047647,-1030.9909204,0.00017938,2]
[322662109,1713195047657,-155.0,0.00018036,2]
[322662112,1713195047668,-236.38430828,0.00018037,2]
[322662114,1713195047677,-155.0,0.00018037,2]
[322662115,1713195047687,-33717.73298054,0.00018037,2]
[322662118,1713195047696,-7829.28031713,0.00018038,2]
[322662120,1713195047706,-683.13738738,0.00018039,2]
[322662122,1713195047715,-5078.84256018,0.00018049,2]
[322662124,1713195047724,-431.81568611,0.00018167,2]
[322662126,1713195047733,-704.0,0.00018228,2]
[322662128,1713195047742,-1030.99092033,0.00018266,2]
[322662129,1713195047751,-5078.84256018,0.00018403,2]
[322662131,1713195047760,-197.58528449,0.00018506,2]
[322662134,1713195047770,-5059.46,0.00018545,2]
[322662136,1713195047779,-1030.99092033,0.00018593,2]
[322662137,1713195047789,-431.81568611,0.00018606,2]
[322662139,1713195047798,-5078.84256018,0.00018758,2]
[322662142,1713195047809,-700.0,0.000189,6]
[322662144,1713195047820,-1030.99092033,0.00018921,2]
[322662146,1713195047828,-298.99850738,0.00019,2]
[322662148,1713195047838,-1550.0,0.00019,3]
[322662150,1713195047850,-233.63758702,0.00019044,2]
[322662152,1713195047860,-431.81568611,0.00019045,2]
[322662154,1713195047869,-267.03728169,0.00019054,2]
[322662156,1713195047880,-486.57702685,0.00019054,2]
[322662158,1713195047889,-263.37380083,0.00019054,2]
[322662160,1713195047898,-207.48667421,0.00019054,2]
[322662162,1713195047907,-4401.60261938,0.00019054,2]
[322662164,1713195047915,-419.14235967,0.00019055,2]
[322662166,1713195047924,-469.72,0.00019109,3]
[322662168,1713195047933,-5078.84256018,0.00019113,2]
[322662170,1713195047942,-342.81596001,0.00019175,2]
[322662171,1713195047951,-780.20204216,0.00019176,2]
[322662173,1713195047961,-505.0,0.00019178,2]
[322662176,1713195047970,-1074.04,0.00019178,2]
[322662177,1713195047979,-157.84,0.00019178,2]
[322662179,1713195047988,-224.07,0.0001918,2]
[322662181,1713195047997,-224.07,0.0001918,2]
[322662183,1713195048006,-224.07,0.0001918,2]
[322662185,1713195048016,-3868.29298528,0.00019247,2]
[322662187,1713195048025,-1030.99092033,0.00019248,2]
[322662189,1713195048034,-167.46,0.00019255,2]
[322662191,1713195048044,-293.0,0.0001936,2]
[322662193,1713195048053,-5078.84256018,0.00019467,2]
[322662195,1713195048061,-166.94,0.00019472,2]
[322662197,1713195048070,-783.52,0.0001948,2]
[322662199,1713195048079,-541.64,0.0001948,2]
[322662201,1713195048088,-200.0,0.0001948,2]
[322662203,1713195048099,-200.0,0.0001948,2]
[322662206,1713195048109,-14354.45141331,0.0001948,2]
[322662213,1713195048166,-2233.27728848,0.0001948,2]
[322662221,1713195048257,-3404.0,0.0001948,2]
[322662223,1713195048269,-274.59129821,0.0001948,2]
[322662225,1713195048279,-1500.0,0.0001948,2]
[322662227,1713195048288,-4000.0,0.0001948,3]
[322662229,1713195048297,-1250.81,0.0001948,2]
[322662231,1713195048306,-431.81568611,0.00019483,2]
[322662233,1713195048316,-783.52,0.00019485,2]
[322662235,1713195048324,-783.52,0.0001949,2]
[322662237,1713195048333,-783.52,0.00019495,2]
[322662239,1713195048342,-783.52,0.000195,2]
[322662241,1713195048357,-783.52,0.00019505,2]
[322662243,1713195048366,-783.52,0.0001951,2]
[322662244,1713195048377,-783.52,0.00019516,2]
[322662246,1713195048385,-783.52,0.00019521,2]
[322662248,1713195048394,-783.52,0.00019526,2]
[322662250,1713195048403,-783.52,0.00019531,2]
[322662252,1713195048412,-783.52,0.00019536,2]
[322662254,1713195048421,-783.52,0.00019541,2]
[322662256,1713195048430,-209.87520122,0.00019546,2]
[322662631,1713195052353,-573.64479878,0.00019546,2]
[322662632,1713195052363,-464.8752569,0.00019551,2]
[322662633,1713195052448,-318.6447431,0.00019551,2]
[322662634,1713195052459,-783.52,0.00019556,2]
[322662635,1713195052469,-783.52,0.00019562,2]
[322662636,1713195052478,-783.52,0.00019567,2]
[322662637,1713195052488,-783.52,0.00019572,2]
[322662638,1713195052497,-487.96883227,0.00019576,2]
[322662762,1713195456759,1567.83,0.00014831,2]
[322662763,1713195511981,20150.75131029,0.00014831,2]
[322662764,1713195528429,150.0,0.00014831,2]
[322662765,1713195528451,150.0,0.00014831,2]
[322662766,1713195528471,150.0,0.00014831,2]
[322662767,1713195528492,180.07760833,0.00014831,2]
[322662768,1713195528513,19604.48431811,0.00014831,2]
[322662769,1713195785883,150.0,0.00015681,2]
[322662770,1713195785904,150.0,0.00015681,2]
[322662771,1713195785929,150.0,0.00015681,2]
[322662772,1713195786320,150.0,0.00015681,2]
[322662773,1713195786342,150.0,0.00015681,2]
[322662774,1713195786363,150.0,0.00015681,2]
[322662775,1713195786385,161.31239167,0.00015681,2]
[322662776,1713195786406,6306.89760833,0.00015681,2]
[322662777,1713195797580,150.0,0.00015716,2]
[322662778,1713195856405,150.0,0.00015716,2]
[322662779,1713195856425,150.0,0.00015716,2]
[322662780,1713195856445,150.0,0.00015716,2]
[322662781,1713195856464,150.0,0.00015716,2]
[322662782,1713195856484,150.0,0.00015716,2]
[322662783,1713195856504,150.0,0.00015716,2]
[322662784,1713195856523,139.63439933,0.00015716,2]
[322662785,1713195870268,697.64814194,0.00015716,2]
[322662787,1713195970082,500.0,0.00015921,2]
[322662789,1713195995429,150.0,0.00015959,2]
[322662790,1713195995458,150.0,0.00015959,2]
[322662791,1713195995480,150.0,0.00015959,2]
[322662792,1713195995502,150.0,0.00015959,2]
[322662793,1713195995525,150.0,0.00015959,2]
[322662794,1713195995547,150.0,0.00015959,2]
[322662795,1713195995568,150.0,0.00015959,2]
[322662796,1713195995590,11.52,0.00015959,2]
[322662797,1713196013497,150.0,0.00015953,2]
[322662798,1713196013519,150.0,0.00015953,2]
[322662799,1713196013539,88.5239151,0.00015953,2]
[322662800,1713196017786,150.0,0.00014023,2]
[322662801,1713196017813,1339.43,0.00014023,2]
[322662802,1713196018681,388.52391508,0.00015954,2]
[322662803,1713196024509,150.0,0.00015954,2]
[322662804,1713196024531,238.52391508,0.00015954,2]
[322662805,1713196036639,-600.0,0.00016047,2]
[322662806,1713196040070,700.0,0.000179,6]
[322662807,1713196150940,-161.93831585,0.00016034,2]
[322662808,1713196150960,-155.0,0.00016034,2]
[322662809,1713196150981,-283.06168415,0.00016034,2]
[322662810,1713196156409,2659.3932,0.00015947,2]
[322662811,1713196168398,-155.0,0.00016032,2]
[322662812,1713196168421,-551.45180784,0.00016033,2]
[322662813,1713196168441,-1863.14519216,0.00016033,2]
[322662814,1713196186889,150.0,0.00015859,2]
[322662815,1713196186909,100.0,0.00015859,2]
[322662816,1713196190049,1000.0,0.00028,30]
[322662817,1713196200248,150.0,0.00015894,2]
[322662818,1713196200268,150.0,0.00015894,2]
[322662819,1713196200289,150.0,0.00015894,2]
[322662820,1713196200312,150.0,0.00015894,2]
[322662821,1713196200334,150.0,0.00015894,2]
[322662822,1713196200355,150.0,0.00015894,2]
[322662823,1713196200375,260.32168557,0.00015894,2]
[322662824,1713196200396,22739.67831443,0.00015894,2]
[322662825,1713196210770,-600.0,0.00016027,2]
[322662826,1713196215214,1000.0,0.00028,30]
[322662827,1713196221170,218.18,0.00015873,2]
[322662828,1713196231187,162.64562646,0.00015926,2]
[322662903,1713196232501,-709.08776493,0.00016026,2]
[322662904,1713196232511,-296.33767696,0.00016026,2]
[322662905,1713196232521,-304.98221471,0.00016026,2]
[322662906,1713196232531,-527.26737601,0.00016027,2]
[322662907,1713196232541,-161.3283795,0.00016028,2]
[322662908,1713196232552,-325.32875202,0.00016028,2]
[322662909,1713196232561,-155.0,0.00016028,2]
[322662910,1713196232571,-155.0,0.00016029,2]
[322662911,1713196232581,-192.53344885,0.0001603,2]
[322662912,1713196232597,-5540.1843977,0.0001603,2]
[322662913,1713196232607,-155.0,0.00016031,2]
[322662914,1713196232618,-703.58659921,0.00016031,2]
[322662915,1713196232628,-1059.54973418,0.00016032,2]
[322662916,1713196232637,-155.0,0.00016032,2]
[322662917,1713196232646,-35216.94195786,0.00016032,2]
[322662918,1713196232657,-2464.01890355,0.00016033,2]
[322662919,1713196232667,-620.80727567,0.00016034,2]
[322662920,1713196232677,-150.0,0.00016045,2]
[322662921,1713196232687,-150.99,0.00016047,2]
[322662922,1713196232697,-621.68,0.00016047,2]
[322662923,1713196232706,-150.0,0.00016137,2]
[322662924,1713196232716,-1489.43,0.00016287,2]
[322662925,1713196232726,-170.22,0.00016302,2]
[322662926,1713196232735,-181.81,0.00016382,2]
[322662927,1713196232745,-157.4918759,0.000164,2]
[322662928,1713196232754,-157.4918759,0.000164,2]
[322662929,1713196232763,-157.4918759,0.000164,2]
[322662930,1713196232772,-157.4918759,0.000164,2]
[322662931,1713196232782,-157.4918759,0.000164,2]
[322662932,1713196232791,-157.4918759,0.000164,2]
[322662933,1713196232801,-157.4918759,0.000164,2]
[322662934,1713196232810,-157.4918759,0.000164,2]
[322662935,1713196232820,-157.4918759,0.000164,2]
[322662936,1713196232829,-157.4918759,0.000164,2]
[322662937,1713196232846,-157.4918759,0.000164,2]
[322662938,1713196232862,-157.4918759,0.000164,2]
[322662939,1713196232871,-157.4918759,0.000164,2]
[322662940,1713196232881,-157.4918759,0.000164,2]
[322662941,1713196232890,-157.49187,0.000164,2]
[322662942,1713196232899,-1000.0,0.00016432,2]
[322662943,1713196232910,-1379.38,0.00016438,2]
[322662944,1713196232919,-1222.73838608,0.000165,2]
[322662945,1713196232929,-170.22,0.00016514,2]
[322662946,1713196232940,-846.64,0.00016657,2]
[322662947,1713196232949,-2215.87,0.00016712,2]
[322662948,1713196232958,-170.22,0.00016726,2]
[322662949,1713196232967,-166.9,0.00016925,2]
[322662950,1713196232981,-1000.0,0.00017121,2]
[322662951,1713196232990,-1000.0,0.00017122,2]
[322662952,1713196233000,-704.6,0.00017154,3]
[322662953,1713196233009,-300.0,0.00017163,2]
[322662954,1713196233019,-312.72912036,0.00017164,2]
[322662955,1713196233029,-863.51196144,0.00017168,2]
[322662956,1713196233040,-2210.87,0.0001717,2]
[322662957,1713196233049,-499.99,0.00017423,2]
[322662958,1713196233059,-526.69146484,0.00017451,2]
[322662959,1713196233068,-1000.0,0.00017524,2]
[322662960,1713196233077,-207.2405,0.00017534,2]
[322662961,1713196233089,-155.0,0.00017548,2]
[322662962,1713196233099,-155.0,0.00017548,2]
[322662963,1713196233109,-155.0,0.00017548,2]
[322662964,1713196233119,-181.16211618,0.00017548,2]
[322662965,1713196233128,-155.0,0.00017548,2]
[322662966,1713196233138,-155.0,0.00017548,2]
[322662967,1713196233148,-398.30017162,0.00017548,2]
[322662968,1713196233157,-155.0,0.00017548,2]
[322662969,1713196233167,-155.0,0.00017548,2]
[322662970,1713196233176,-155.0,0.00017548,2]
[322662971,1713196233186,-155.0,0.00017548,2]
[322662972,1713196233195,-155.0,0.00017548,2]
[322662973,1713196233205,-155.0,0.00017548,2]
[322662974,1713196233214,-155.0,0.00017548,2]
[322662975,1713196233224,-155.0,0.00017548,2]
[322662976,1713196233234,-253.58833214,0.00017549,2]
[322662977,1713196233243,-245029.55621257,0.0001755,2]
[322662978,1713196233256,-5985.8999,0.0001755,2]
[322662979,1713196233267,-4930.25,0.0001755,2]
[322662980,1713196233279,-78253.1293222,0.0001755,2]
[322662981,1713196233290,-306.20467746,0.0001755,2]
[322662982,1713196233322,-693.12392665,0.0001755,2]
[322662983,1713196233464,-346.53616094,0.0001755,2]
[322662984,1713196233545,-92259.29689489,0.0001755,2]
[322662985,1713196233557,-601.99473613,0.0001755,2]
[322662986,1713196233629,-1421.18809713,0.0001755,2]
[322662987,1713196233641,-550.0,0.0001755,2]
[322662988,1713196233699,-2750.0,0.0001755,2]
[322663068,1713196238484,-170.22,0.00016016,2]
[322663070,1713196238493,-583.06055876,0.00016025,2]
[322663072,1713196238502,-155.0,0.00016025,2]
[322663074,1713196238511,-162.64562643,0.00016189,2]
[322663076,1713196238520,-161.93831585,0.00016499,2]
[322663078,1713196238528,-170.22,0.0001685,2]
[322663080,1713196238537,-500.0,0.00017543,2]
[322663081,1713196238546,-171.39,0.00017603,2]
[322663084,1713196238556,-210.0,0.0001765,2]
[322663085,1713196238566,-521.4807044,0.00017738,2]
[322663088,1713196238575,-155.58338666,0.00017745,2]
[322663089,1713196238584,-1112.29885553,0.00017747,2]
[322663097,1713196238643,-4165.90852834,0.00017747,2]
[322663104,1713196238699,-1384.00536969,0.00017747,2]
[322663271,1713196240362,-12350.47046653,0.00017747,2]
[322663274,1713196240373,-218.18,0.00017857,2]
[322663277,1713196240383,-1744.15544582,0.0001788,2]
[322663279,1713196240393,-129.31227864,0.0001788,2]
[322663282,1713196240407,-1614.84316712,0.0001788,2]
[322663284,1713196240416,-526.69146477,0.00017929,2]
[322663286,1713196240426,-3021.7981799,0.00017997,2]
[322663288,1713196240435,-63721.2099882,0.00017997,2]
[322663290,1713196240447,-13803.4,0.00017997,2]
[322663295,1713196240489,-69000.0,0.00017997,2]
[322663298,1713196240501,-9070.81286934,0.00017997,2]
[322663306,1713196240566,-1785.42312481,0.00017997,2]
[322663308,1713196240578,-656.86,0.00017997,2]
[322663444,1713196241878,-1763.44981867,0.00017997,2]
[322663447,1713196241889,-787.37543095,0.00017997,2]
[322663449,1713196241901,-953.52133152,0.00017997,2]
[322663564,1713196242711,-162.64562643,0.00016452,2]
[322663568,1713196242721,-941.56937357,0.00017997,2]
[322663578,1713196242753,-383140.21521598,0.00017997,2]
[322663580,1713196242762,-4881.31937994,0.00017998,2]
[322663582,1713196242772,-33717.73298054,0.00018,2]
[322663585,1713196242781,-155.0,0.00018,2]
[322663587,1713196242791,-1744.15544576,0.00018214,2]
[322663589,1713196242801,-207.2405,0.00018356,2]
[322663591,1713196242810,-526.69146477,0.00018408,2]
[322663593,1713196242820,-1380.44500161,0.00018418,2]
[322663595,1713196242829,-7368.21,0.0001842,2]
[322663597,1713196242841,-1000.0,0.00018486,2]
[322663598,1713196242853,-1489.43,0.00018551,2]
[322663600,1713196242865,-1744.15544576,0.00018596,2]
[322663603,1713196242875,-525.96798247,0.00018618,2]
[322663605,1713196242885,-1380.44500161,0.00018824,2]
[322663607,1713196242895,-526.69146477,0.00018886,2]
[322663609,1713196242906,-1380.44500161,0.00018962,2]
[322663610,1713196242916,-1744.15544576,0.00018978,2]
[322663613,1713196242925,-298.99850738,0.00019,2]
[322663615,1713196242937,-233.63758702,0.00019,2]
[322663617,1713196242947,-181.81,0.00019112,2]
[322663619,1713196242956,-3391.16572951,0.00019144,2]
[322663621,1713196242966,-512.0,0.00019178,2]
[322663622,1713196242975,-203.74317491,0.00019178,2]
[322663625,1713196242985,-865.3,0.00019178,2]
[322663627,1713196242995,-207.2405,0.00019178,2]
[322663629,1713196243005,-156.62,0.0001918,2]
[322663630,1713196243015,-156.62,0.0001918,2]
[322663632,1713196243024,-3868.29298528,0.000192,2]
[322663634,1713196243034,-3391.16572951,0.00019245,2]
[322663636,1713196243043,-2622.91702689,0.00019314,2]
[322663638,1713196243053,-1380.44500161,0.00019348,2]
[322663640,1713196243062,-1744.15544576,0.00019359,2]
[322663642,1713196243071,-526.69146477,0.00019365,2]
[322663644,1713196243081,-171.0,0.00019414,2]
[322663647,1713196243098,-306.7,0.0001948,2]
[322663648,1713196243107,-167.33,0.0001948,2]
[322663651,1713196243117,-1100.0,0.0001948,2]
[322663653,1713196243126,-1297.52,0.0001948,3]
[322663655,1713196243135,-200.0,0.0001948,2]
[322663657,1713196243144,-2374.45,0.0001948,2]
[322663659,1713196243154,-3376.06,0.0001948,2]
[322663661,1713196243164,-2751.0,0.0001948,2]
[322663663,1713196243173,-306.7,0.00019485,2]
[322663665,1713196243183,-306.7,0.0001949,2]
[322663666,1713196243192,-306.7,0.00019495,2]
[322663668,1713196243202,-306.7,0.000195,2]
[322663671,1713196243212,-306.7,0.00019505,2]
[322663673,1713196243221,-306.7,0.0001951,2]
[322663675,1713196243230,-306.7,0.00019516,2]
[322663677,1713196243239,-306.7,0.00019521,2]
[322663679,1713196243249,-306.7,0.00019526,2]
[322663682,1713196243258,-306.7,0.00019531,2]
[322663683,1713196243267,-306.7,0.00019536,2]
[322663686,1713196243276,-306.7,0.00019541,2]
[322663688,1713196243285,-6843.28678309,0.00019546,2]
[322663690,1713196243294,-200.2720092,0.00019546,2]
[322663692,1713196243303,-1123.8434254,0.00019546,2]
[322663694,1713196243312,-179.38367057,0.00019546,2]
[322663696,1713196243321,-1372.31770544,0.00019546,2]
[322663697,1713196243331,-300.56750398,0.00019546,2]
[322663698,1713196243343,-1169.48267161,0.00019546,2]
[322663699,1713196243352,-306.7,0.00019546,2]
[322663700,1713196243361,-306.7,0.00019551,2]
[322663701,1713196243371,-306.7,0.00019556,2]
[322663702,1713196243381,-306.7,0.00019562,2]
[322663703,1713196243391,-156.62,0.00019564,2]
[322663704,1713196243400,-306.7,0.00019567,2]
[322663705,1713196243410,-306.7,0.00019572,2]
[322663706,1713196243419,-155.0,0.00019573,2]
[322663707,1713196243429,-80761.3126157,0.00019574,2]
[322663708,1713196243440,-21218.3623416,0.00019574,2]
[322663709,1713196243451,-500.0,0.00019576,2]
[322663710,1713196243460,-2000.0,0.00019576,2]
[322663711,1713196243470,-200.0,0.00019576,2]
[322663712,1713196243479,-2000.0,0.00019576,2]
[322663713,1713196243488,-200.0,0.00019576,2]
[322663714,1713196243499,-2000.0,0.00019576,2]
[322663715,1713196243512,-200.0,0.00019576,2]
[322663716,1713196243522,-3000.0,0.00019576,2]
[322663717,1713196243531,-783.52,0.00019577,2]
[322663718,1713196243541,-306.7,0.00019577,2]
[322663719,1713196243551,-3907.3047666,0.00019587,2]
[322663720,1713196243560,-500.0,0.00019612,2]
[322663721,1713196243569,-230.91496312,0.00019615,2]
[322663722,1713196243579,-11002.356452,0.00019621,2]
[322663723,1713196243592,-176.35323577,0.00019626,2]
[322663724,1713196243601,-1000.0,0.00019726,2]
[322663725,1713196243610,-1744.15544576,0.00019741,2]
[322663726,1713196243619,-1000.0,0.00019749,2]
[322663727,1713196243628,-2000.0,0.00019772,2]
[322663728,1713196243637,-200.0,0.00019772,2]
[322663729,1713196243646,-2000.0,0.00019772,2]
[322663730,1713196243656,-200.0,0.00019772,2]
[322663731,1713196243665,-2000.0,0.00019772,2]
[322663732,1713196243675,-200.0,0.00019772,2]
[322663733,1713196243684,-251.27451082,0.00019797,2]
[322663734,1713196243694,-1160.5709,0.00019799,2]
[322663735,1713196243703,-8408.33519986,0.000198,2]
[322663736,1713196243713,-296.72761363,0.000198,2]
[322663737,1713196243722,-7500.0,0.00019839,2]
[322663738,1713196243731,-570.57690158,0.0001984,2]
[322663739,1713196243741,-218.18,0.00019841,2]
[322663740,1713196243750,-526.69146477,0.00019843,2]
[322663741,1713196243759,-1380.44500161,0.00019876,2]
[322663742,1713196243769,-8408.33519975,0.000199,2]
[322663743,1713196243778,-1400.0,0.000199,7]
[322663744,1713196243788,-1000.0,0.000199,2]
[322663745,1713196243797,-152.05125477,0.000199,2]
[322663746,1713196243806,-152.0512545,0.000199,2]
[322663747,1713196243816,-152.0512545,0.000199,2]
[322663748,1713196243825,-152.0512545,0.000199,2]
[322663749,1713196243834,-152.0512545,0.000199,2]
[322663750,1713196243848,-152.0512545,0.000199,2]
[322663751,1713196243858,-152.0512545,0.000199,2]
[322663752,1713196243870,-152.0512545,0.000199,2]
[322663753,1713196243879,-152.0512545,0.000199,2]
[322663754,1713196243889,-152.0512545,0.000199,2]
[322663755,1713196243901,-152.0512545,0.000199,2]
[322663756,1713196243910,-230.9149631,0.00019911,2]
[322663757,1713196243919,-161.74,0.00019912,2]
[322663758,1713196243929,-152.0512545,0.00019918,2]
[322663759,1713196243939,-10000.0,0.00019939,2]
[322663760,1713196243949,-2000.0,0.00019969,2]
[322663761,1713196243958,-200.0,0.00019969,2]
[322663762,1713196243968,-2000.0,0.00019969,2]
[322663763,1713196243977,-200.0,0.00019969,2]
[322663764,1713196243986,-2000.0,0.00019969,2]
[322663765,1713196243996,-200.0,0.00019969,2]
[322663766,1713196244005,-152.0512545,0.0001997,2]
[322663767,1713196244015,-3391.16572951,0.0001999,2]
[322663768,1713196244025,-4574.96005459,0.00019996,2]
[322663769,1713196244034,-8189.68055501,0.0002,2]
[322663770,1713196244044,-4354.13,0.0002,2]
[322663771,1713196244053,-8000.0,0.0002,2]
[322663772,1713196244062,-204.0,0.0002,2]
[322663773,1713196244072,-1764.94365251,0.0002,2]
[322663774,1713196244082,-441.75589804,0.0002,2]
[322663775,1713196244094,-1046.55154272,0.0002,2]
[322663776,1713196244104,-641.0611939,0.0002,2]
[322663777,1713196244114,-6216.8220722,0.0002,2]
[322663778,1713196244124,-3064.07513129,0.0002,2]
[322663779,1713196244134,-981.9786843,0.0002,2]
[322663780,1713196244144,-186.00550827,0.0002,2]
[322663781,1713196244154,-1256.02470065,0.0002,2]
[322663782,1713196244164,-859.05239127,0.0002,2]
[322663783,1713196244174,-155.0,0.0002,2]
[322663784,1713196244184,-8408.33519975,0.0002,2]
[322663785,1713196244193,-1000.0,0.0002,2]
[322663786,1713196244203,-207.2405,0.0002,2]
[322663787,1713196244216,-1507.11,0.0002001,2]
[322663788,1713196244225,-152.0512545,0.00020022,2]
[322663789,1713196244235,-176.35323577,0.00020046,2]
[322663790,1713196244244,-3391.16572951,0.00020054,2]
[322663791,1713196244254,-152.0512545,0.00020073,2]
[322663792,1713196244263,-8408.33519975,0.000201,2]
[322663793,1713196244273,-1000.0,0.000201,2]
[322663794,1713196244282,-1000.0,0.000201,2]
[322663795,1713196244292,-2200.0,0.000201,7]
[322663796,1713196244301,-1744.15544576,0.00020123,2]
[322663797,1713196244312,-152.0512545,0.00020125,2]
[322663798,1713196244323,-2000.0,0.00020169,2]
[322663799,1713196244332,-200.0,0.00020169,2]
[322663800,1713196244346,-2000.0,0.00020169,2]
[322663801,1713196244356,-200.0,0.00020169,2]
[322663802,1713196244366,-2000.0,0.00020169,2]
[322663803,1713196244375,-200.0,0.00020169,2]
[322663804,1713196244384,-152.0512545,0.00020177,2]
[322663805,1713196244393,-8408.33519975,0.000202,2]
[322663806,1713196244403,-2900.0,0.000202,7]
[322663807,1713196244413,-230.9149631,0.00020208,2]
[322663808,1713196244422,-152.0512545,0.00020228,2]
[322663809,1713196244431,-541.0,0.00020246,2]
[322663810,1713196244440,-1380.44500161,0.0002025,2]
[322663811,1713196244449,-512.0,0.00020274,2]
[322663812,1713196244458,-152.0512545,0.0002028,2]
[322663813,1713196244467,-8408.33519975,0.000203,2]
[322663814,1713196244476,-296.72761363,0.000203,2]
[322663815,1713196244486,-3600.0,0.000203,7]
[322663816,1713196244495,-526.69146477,0.00020322,2]
[322663817,1713196244504,-152.0512545,0.00020332,2]
[322663818,1713196244513,-2348.40457634,0.0002037,2]
[322663819,1713196244523,-2348.40457635,0.0002037,2]
[322663820,1713196244532,-2000.0,0.00020371,2]
[322663821,1713196244542,-200.0,0.00020371,2]
[322663822,1713196244551,-2000.0,0.00020371,2]
[322663823,1713196244560,-200.0,0.00020371,2]
[322663824,1713196244569,-2000.0,0.00020371,2]
[322663825,1713196244579,-200.0,0.00020371,2]
[322663826,1713196244588,-152.0512545,0.00020383,2]
[322663827,1713196244599,-174.24710374,0.0002039,2]
[322663828,1713196244608,-515.0,0.0002039,2]